fUST/lending_fUST_20250916
["ID","MTS","AMOUNT","RATE_DAILY","PERIOD"]
[385758009,1758021042769,-482.10064564,0.00021917,2]
[385758010,1758021042779,-151.0,0.00021917,2]
[385758011,1758021042788,-480.0,0.00021917,2]
[385758012,1758021042797,-151.0,0.00021917,2]
[385758013,1758021042806,-480.0,0.00021917,2]
[385758014,1758021042815,-480.0,0.00021917,2]
[385758015,1758021042824,-480.0,0.00021917,2]
[385758016,1758021042834,-472.29545273,0.00021917,2]
[385758017,1758021042844,-480.0,0.00021917,2]
[385758018,1758021042854,-481.86765808,0.00021917,2]
[385758019,1758021042863,-480.0,0.00021917,2]
[385758020,1758021042873,-603.53,0.00021917,2]
[385758021,1758021042883,-480.0,0.00021917,2]
[385758022,1758021042892,-481.68159189,0.00021917,2]
[385758023,1758021042901,-151.0,0.00021917,2]
[385758024,1758021042911,-480.0,0.00021917,2]
[385758025,1758021042920,-530.27151717,0.00021917,2]
[385758026,1758021042930,-480.0,0.00021917,2]
[385758027,1758021042939,-481.25120285,0.00021917,2]
[385758028,1758021042949,-480.0,0.00021917,2]
[385758029,1758021042958,-481.50615912,0.00021917,2]
[385758030,1758021042967,-265.81003938,0.00021917,2]
[385758031,1758021042977,-480.0,0.00021917,2]
[385758032,1758021042986,-482.44936623,0.00021917,2]
[385758033,1758021042995,-480.0,0.00021917,2]
[385758034,1758021043005,-480.0,0.00021917,2]
[385758035,1758021043014,-482.96929015,0.00021917,2]
[385758036,1758021043023,-480.0,0.00021917,2]
[385758037,1758021043032,-483.59950697,0.00021917,2]
[385758038,1758021043041,-485.84288142,0.00021917,2]
[385758039,1758021043050,-480.0,0.00021917,2]
[385758040,1758021043059,-155.047973,0.00021917,2]
[385758041,1758021043068,-480.0,0.00021917,2]
[385758042,1758021043077,-480.0,0.00021917,2]
[385758043,1758021043087,-480.0,0.00021917,2]
[385758044,1758021043096,-480.0,0.00021917,2]
[385758045,1758021043105,-480.0,0.00021917,2]
[385758046,1758021043114,-480.0,0.00021917,2]
[385758047,1758021043123,-480.0,0.00021917,2]
[385758048,1758021043132,-480.0,0.00021917,2]
[385758049,1758021043142,-151.0,0.00021917,2]
[385758050,1758021043151,-151.0,0.00021917,2]
[385758051,1758021043160,-151.0,0.00021917,2]
[385758052,1758021043169,-151.0,0.00021917,2]
[385758053,1758021043179,-480.0,0.00021917,2]
[385758054,1758021043187,-480.0,0.00021917,2]
[385758055,1758021043197,-480.0,0.00021917,2]
[385758056,1758021043206,-480.0,0.00021917,2]
[385758057,1758021043215,-519.14,0.00021917,2]
[385758058,1758021043224,-480.0,0.00021917,2]
[385758059,1758021043233,-480.0,0.00021917,2]
[385758060,1758021043243,-480.0,0.00021917,2]
[385758061,1758021043252,-480.0,0.00021917,2]
[385758062,1758021043262,-480.0,0.00021917,2]
[385758063,1758021043271,-480.0,0.00021917,2]
[385758064,1758021043281,-480.0,0.00021917,2]
[385758065,1758021043291,-151.0,0.00021917,2]
[385758066,1758021043302,-480.0,0.00021917,2]
[385758067,1758021043311,-480.0,0.00021917,2]
[385758068,1758021043320,-480.0,0.00021917,2]
[385758069,1758021043330,-481.68566798,0.00021917,2]
[385758070,1758021043339,-480.0,0.00021917,2]
[385758071,1758021043348,-480.0,0.00021917,2]
[385758072,1758021043357,-480.0,0.00021917,2]
[385758073,1758021043366,-481.45962989,0.00021917,2]
[385758074,1758021043376,-482.18178716,0.00021917,2]
[385758075,1758021043385,-480.0,0.00021917,2]
[385758076,1758021043394,-481.65701168,0.00021917,2]
[385758077,1758021043404,-480.0,0.00021917,2]
[385758078,1758021043413,-480.0,0.00021917,2]
[385758079,1758021043422,-481.4071161,0.00021917,2]
[385758080,1758021043433,-482.95437942,0.00021917,2]
[385758081,1758021043443,-480.0,0.00021917,2]
[385758082,1758021043452,-480.99319864,0.00021917,2]
[385758083,1758021043462,-480.0,0.00021917,2]
[385758084,1758021043471,-480.0,0.00021917,2]
[385758085,1758021043480,-486.01512052,0.00021917,2]
[385758086,1758021043489,-480.0,0.00021917,2]
[385758087,1758021043498,-480.0,0.00021917,2]
[385758088,1758021043507,-480.0,0.00021917,2]
[385758089,1758021043516,-480.0,0.00021917,2]
[385758090,1758021043526,-480.0,0.00021917,2]
[385758091,1758021043539,-480.0,0.00021917,2]
[385758092,1758021043549,-480.0,0.00021917,2]
[385758093,1758021043558,-480.0,0.00021917,2]
[385758094,1758021043567,-481.95398406,0.00021917,2]
[385758095,1758021043576,-480.0,0.00021917,2]
[385758096,1758021043585,-480.0,0.00021917,2]
[385758097,1758021043594,-480.0,0.00021917,2]
[385758098,1758021043605,-480.0,0.00021917,2]
[385758099,1758021043619,-480.0,0.00021917,2]
[385758100,1758021043628,-151.0,0.00021917,2]
[385758101,1758021043638,-483.02206346,0.00021917,2]
[385758102,1758021043647,-477.60741731,0.00021917,2]
[385758103,1758021043657,-461.388152,0.00021917,2]
[385758104,1758021043666,-480.0,0.00021917,2]
[385758105,1758021043675,-480.0,0.00021917,2]
[385758106,1758021043685,-480.0,0.00021917,2]
[385758107,1758021043695,-480.0,0.00021917,2]
[385758108,1758021043704,-480.0,0.00021917,2]
[385758109,1758021043713,-164.822874,0.00021917,2]
[385758110,1758021043722,-480.0,0.00021917,2]
[385758111,1758021043731,-480.0,0.00021917,2]
[385758112,1758021043740,-482.41937636,0.00021917,2]
[385758113,1758021043749,-480.0,0.00021917,2]
[385758114,1758021043758,-480.0,0.00021917,2]
[385758115,1758021043767,-481.26177031,0.00021917,2]
[385758116,1758021043776,-481.36380668,0.00021917,2]
[385758117,1758021043785,-480.0,0.00021917,2]
[385758118,1758021043795,-559.25393928,0.00021917,2]
[385758119,1758021043803,-480.0,0.00021917,2]
[385758120,1758021043813,-480.0,0.00021917,2]
[385758121,1758021043822,-153.126558,0.00021917,2]
[385758122,1758021043831,-480.00000001,0.00021917,2]
[385758123,1758021043840,-483.90150031,0.00021917,2]
[385758124,1758021043850,-480.0,0.00021917,2]
[385758125,1758021043858,-480.0,0.00021917,2]
[385758126,1758021043867,-151.0,0.00021917,2]
[385758127,1758021043876,-480.0,0.00021917,2]
[385758128,1758021043958,-152.410011,0.00021917,2]
[385758129,1758021043967,-152.583513,0.00021917,2]
[385758130,1758021043977,-153.446827,0.00021917,2]
[385758131,1758021043986,-480.0,0.00021917,2]
[385758132,1758021043995,-1920.16,0.00021917,2]
[385758133,1758021044004,-480.0,0.00021917,2]
[385758134,1758021044013,-480.0,0.00021917,2]
[385758135,1758021044022,-480.0,0.00021917,2]
[385758136,1758021044031,-480.0,0.00021917,2]
[385758137,1758021044040,-4282.56,0.00021917,2]
[385758138,1758021044050,-480.0,0.00021917,2]
[385758139,1758021044059,-480.0,0.00021917,2]
[385758140,1758021044067,-480.0,0.00021917,2]
[385758141,1758021044076,-152.761058,0.00021917,2]
[385758142,1758021044085,-2631.92,0.00021917,2]
[385758143,1758021044095,-480.0,0.00021917,2]
[385758144,1758021044104,-151.0,0.00021917,2]
[385758145,1758021044113,-480.0,0.00021917,2]
[385758146,1758021044122,-480.0,0.00021917,2]
[385758147,1758021044131,-481.08234993,0.00021917,2]
[385758148,1758021044140,-480.0,0.00021917,2]
[385758149,1758021044149,-480.0,0.00021917,2]
[385758150,1758021044158,-480.0,0.00021917,2]
[385758151,1758021044168,-492.26,0.00021917,2]
[385758152,1758021044177,-575.68,0.00021917,2]
[385758153,1758021044186,-151.0,0.00021917,2]
[385758154,1758021044196,-151.0,0.00021917,2]
[385758155,1758021044205,-486.16324804,0.00021917,2]
[385758156,1758021044214,-151.0,0.00021917,2]
[385758157,1758021044223,-480.0,0.00021917,2]
[385758158,1758021044233,-480.0,0.00021917,2]
[385758159,1758021044241,-480.0,0.00021917,2]
[385758160,1758021044250,-480.0,0.00021917,2]
[385758161,1758021044259,-480.0,0.00021917,2]
[385758162,1758021044268,-1461.4,0.00021917,2]
[385758163,1758021044277,-480.0,0.00021917,2]
[385758164,1758021044287,-480.0,0.00021917,2]
[385758165,1758021044295,-480.0,0.00021917,2]
[385758166,1758021044304,-480.0,0.00021917,2]
[385758167,1758021044313,-480.0,0.00021917,2]
[385758168,1758021044323,-480.0,0.00021917,2]
[385758169,1758021044333,-151.0,0.00021917,2]
[385758170,1758021044343,-480.0,0.00021917,2]
[385758171,1758021044351,-480.0,0.00021917,2]
[385758172,1758021044361,-485.59476218,0.00021917,2]
[385758173,1758021044370,-481.00994577,0.00021917,2]
[385758174,1758021044379,-480.0,0.00021917,2]
[385758175,1758021044388,-480.0,0.00021917,2]
[385758176,1758021044397,-480.0,0.00021917,2]
[385758177,1758021044406,-480.0,0.00021917,2]
[385758178,1758021044415,-480.0,0.00021917,2]
[385758179,1758021044424,-527.18,0.00021917,2]
[385758180,1758021044433,-480.0,0.00021917,2]
[385758181,1758021044442,-480.85952603,0.00021917,2]
[385758182,1758021044452,-480.0,0.00021917,2]
[385758183,1758021044461,-486.10136509,0.00021917,2]
[385758184,1758021044470,-480.0,0.00021917,2]
[385758185,1758021044479,-480.0,0.00021917,2]
[385758186,1758021044489,-480.0,0.00021917,2]
[385758187,1758021044498,-1089.73,0.00021917,2]
[385758188,1758021044507,-480.0,0.00021917,2]
[385758189,1758021044516,-151.0,0.00021917,2]
[385758190,1758021044526,-151.0,0.00021917,2]
[385758191,1758021044535,-483.44620181,0.00021917,2]
[385758192,1758021044545,-151.0,0.00021917,2]
[385758193,1758021044554,-485.23228854,0.00021917,2]
[385758194,1758021044564,-334.29812021,0.00021917,2]
[385758195,1758021044574,-220.1358123,0.00021917,2]
[385758196,1758021044583,-480.0,0.00021917,2]
[385758197,1758021044595,-151.0,0.00021917,2]
[385758198,1758021044604,-480.56793342,0.00021917,2]
[385758199,1758021044618,-480.0,0.00021917,2]
[385758200,1758021044628,-480.0,0.00021917,2]
[385758201,1758021044639,-480.0,0.00021917,2]
[385758202,1758021044649,-480.0,0.00021917,2]
[385758203,1758021044659,-480.0,0.00021917,2]
[385758204,1758021044669,-602.11,0.00021917,2]
[385758205,1758021044679,-480.0,0.00021917,2]
[385758206,1758021044690,-480.0,0.00021917,2]
[385758207,1758021044700,-480.0,0.00021917,2]
[385758208,1758021044710,-480.0,0.00021917,2]
[385758209,1758021044720,-480.0,0.00021917,2]
[385758210,1758021044729,-983.3,0.00021917,2]
[385758211,1758021044741,-480.0,0.00021917,2]
[385758212,1758021044752,-480.0,0.00021917,2]
[385758213,1758021044763,-154.548553,0.00021917,2]
[385758214,1758021044772,-480.0,0.00021917,2]
[385758215,1758021044781,-480.0,0.00021917,2]
[385758216,1758021044793,-480.0,0.00021917,2]
[385758217,1758021044803,-480.0,0.00021917,2]
[385758218,1758021044812,-500.0,0.00021917,2]
[385758219,1758021044822,-491.61,0.00021917,2]
[385758220,1758021044833,-480.0,0.00021917,2]
[385758221,1758021044842,-480.0,0.00021917,2]
[385758222,1758021044851,-480.0,0.00021917,2]
[385758223,1758021044860,-487.39177472,0.00021917,2]
[385758224,1758021044871,-480.56902108,0.00021917,2]
[385758225,1758021044882,-151.0,0.00021917,2]
[385758226,1758021044891,-480.0,0.00021917,2]
[385758227,1758021044901,-483.66037877,0.00021917,2]
[385758228,1758021044911,-153.968198,0.00021917,2]
[385758229,1758021044920,-481.24041176,0.00021917,2]
[385758230,1758021044929,-155.001347,0.00021917,2]
[385758231,1758021044938,-1845.96,0.00021917,2]
[385758232,1758021044947,-482.81748779,0.00021917,2]
[385758233,1758021044956,-403.71492675,0.00021917,2]
[385758234,1758021044965,-480.0,0.00021917,2]
[385758235,1758021044974,-152.033077,0.00021917,2]
[385758236,1758021044983,-480.0,0.00021917,2]
[385758237,1758021044993,-480.0,0.00021917,2]
[385758238,1758021045002,-487.60553957,0.00021917,2]
[385758239,1758021045011,-480.0,0.00021917,2]
[385758240,1758021045021,-480.0,0.00021917,2]
[385758241,1758021045030,-480.0,0.00021917,2]
[385758242,1758021045039,-151.0,0.00021917,2]
[385758243,1758021045048,-480.0,0.00021917,2]
[385758244,1758021045057,-480.0,0.00021917,2]
[385758245,1758021045066,-480.0,0.00021917,2]
[385758246,1758021045076,-482.6242823,0.00021917,2]
[385758247,1758021045085,-480.0,0.00021917,2]
[385758248,1758021045095,-483.75777395,0.00021917,2]
[385758249,1758021045104,-480.0,0.00021917,2]
[385758250,1758021045114,-480.0,0.00021917,2]
[385758251,1758021045123,-480.0,0.00021917,2]
[385758252,1758021045132,-151.0,0.00021917,2]
[385758253,1758021045142,-480.0,0.00021917,2]
[385758254,1758021045151,-1265.87,0.00021917,2]
[385758255,1758021045160,-480.0,0.00021917,2]
[385758256,1758021045169,-153.902806,0.00021917,2]
[385758257,1758021045178,-480.0,0.00021917,2]
[385758258,1758021045187,-480.0,0.00021917,2]
[385758259,1758021045196,-480.0,0.00021917,2]
[385758260,1758021045205,-480.0,0.00021917,2]
[385758261,1758021045215,-480.0,0.00021917,2]
[385758262,1758021045224,-480.0,0.00021917,2]
[385758263,1758021045233,-480.0,0.00021917,2]
[385758264,1758021045243,-480.0,0.00021917,2]
[385758265,1758021045252,-481.88664417,0.00021917,2]
[385758266,1758021045261,-480.0,0.00021917,2]
[385758267,1758021045270,-480.0,0.00021917,2]
[385758268,1758021045279,-480.0,0.00021917,2]
[385758270,1758021045289,-480.0,0.00021917,2]
[385758271,1758021045298,-480.0,0.00021917,2]
[385758272,1758021045308,-482.07983135,0.00021917,2]
[385758273,1758021045317,-480.0,0.00021917,2]
[385758274,1758021045327,-480.0,0.00021917,2]
[385758275,1758021045336,-480.0,0.00021917,2]
[385758276,1758021045348,-480.0,0.00021917,2]
[385758277,1758021045357,-480.0,0.00021917,2]
[385758278,1758021045367,-480.0,0.00021917,2]
[385758279,1758021045375,-483.70607168,0.00021917,2]
[385758280,1758021045385,-483.48,0.00021917,2]
[385758281,1758021045394,-480.0,0.00021917,2]
[385758282,1758021045404,-480.0,0.00021917,2]
[385758283,1758021045413,-480.0,0.00021917,2]
[385758284,1758021045422,-480.0,0.00021917,2]
[385758285,1758021045431,-480.0,0.00021917,2]
[385758286,1758021045442,-480.0,0.00021917,2]
[385758287,1758021045451,-484.14979728,0.00021917,2]
[385758288,1758021045460,-480.0,0.00021917,2]
[385758289,1758021045469,-480.0,0.00021917,2]
[385758290,1758021045478,-167.637528,0.00021917,2]
[385758291,1758021045487,-480.0,0.00021917,2]
[385758292,1758021045496,-480.0,0.00021917,2]
[385758293,1758021045506,-480.0,0.00021917,2]
[385758294,1758021045515,-480.0,0.00021917,2]
[385758295,1758021045524,-480.0,0.00021917,2]
[385758296,1758021045533,-619.6,0.00021917,2]
[385758297,1758021045543,-583.99,0.00021917,2]
[385758298,1758021045553,-480.0,0.00021917,2]
[385758299,1758021045563,-151.0,0.00021917,2]
[385758300,1758021045644,-480.0,0.00021917,2]
[385758301,1758021045655,-480.0,0.00021917,2]
[385758302,1758021045663,-480.0,0.00021917,2]
[385758303,1758021045672,-480.0,0.00021917,2]
[385758304,1758021045682,-480.0,0.00021917,2]
[385758305,1758021045692,-480.0,0.00021917,2]
[385758306,1758021045701,-7498.86,0.00021917,2]
[385758307,1758021045710,-480.0,0.00021917,2]
[385758308,1758021045719,-480.0,0.00021917,2]
[385758309,1758021045728,-484.05514331,0.00021917,2]
[385758310,1758021045737,-480.0,0.00021917,2]
[385758311,1758021045746,-480.0,0.00021917,2]
[385758312,1758021045755,-480.0,0.00021917,2]
[385758313,1758021045764,-929.99,0.00021917,2]
[385758314,1758021045773,-480.0,0.00021917,2]
[385758315,1758021045782,-482.38001354,0.00021917,2]
[385758316,1758021045791,-820.25,0.00021917,2]
[385758317,1758021045801,-353.26990934,0.00021917,2]
[385758318,1758021045809,-483.43857539,0.00021917,2]
[385758319,1758021045818,-480.0,0.00021917,2]
[385758320,1758021045827,-506.75094292,0.00021917,2]
[385758321,1758021045836,-483.60418818,0.00021917,2]
[385758322,1758021045847,-271.025088,0.00021917,2]
[385758323,1758021045855,-480.0,0.00021917,2]
[385758324,1758021045864,-480.0,0.00021917,2]
[385758325,1758021045874,-480.0,0.00021917,2]
[385758326,1758021045883,-480.0,0.00021917,2]
[385758327,1758021045893,-487.70191886,0.00021917,2]
[385758328,1758021045903,-480.0,0.00021917,2]
[385758329,1758021045912,-151.0,0.00021917,2]
[385758330,1758021045921,-276.062693,0.00021917,2]
[385758331,1758021045931,-480.0,0.00021917,2]
[385758332,1758021045940,-480.0,0.00021917,2]
[385758333,1758021045950,-373.30143463,0.00021917,2]
[385758334,1758021045959,-489.38095227,0.00021917,2]
[385758335,1758021045969,-480.0,0.00021917,2]
[385758336,1758021045978,-480.0,0.00021917,2]
[385758338,1758021045987,-487.27938389,0.00021917,2]
[385758339,1758021045996,-480.0,0.00021917,2]
[385758340,1758021046006,-480.0,0.00021917,2]
[385758341,1758021046015,-480.0,0.00021917,2]
[385758342,1758021046025,-480.0,0.00021917,2]
[385758344,1758021046034,-480.0,0.00021917,2]
[385758346,1758021046043,-293.264539,0.00021917,2]
[385758348,1758021046052,-480.0,0.00021917,2]
[385758350,1758021046060,-480.0,0.00021917,2]
[385758352,1758021046069,-480.0,0.00021917,2]
[385758354,1758021046078,-480.0,0.00021917,2]
[385758356,1758021046087,-480.0,0.00021917,2]
[385758358,1758021046097,-480.0,0.00021917,2]
[385758359,1758021046106,-480.0,0.00021917,2]
[385758361,1758021046115,-480.0,0.00021917,2]
[385758363,1758021046124,-630.02,0.00021917,2]
[385758365,1758021046134,-480.0,0.00021917,2]
[385758367,1758021046143,-152.087966,0.00021917,2]
[385758370,1758021046155,-151.0,0.00021917,2]
[385758372,1758021046164,-151.0,0.00021917,2]
[385758374,1758021046174,-151.0,0.00021917,2]
[385758376,1758021046183,-484.07383021,0.00021917,2]
[385758378,1758021046192,-480.0,0.00021917,2]
[385758380,1758021046201,-480.0,0.00021917,2]
[385758382,1758021046211,-480.0,0.00021917,2]
[385758384,1758021046220,-480.0,0.00021917,2]
[385758386,1758021046229,-481.22718777,0.00021917,2]
[385758388,1758021046239,-223.97291358,0.00021917,2]
[385758390,1758021046248,-480.0,0.00021917,2]
[385758392,1758021046257,-480.0,0.00021917,2]
[385758394,1758021046267,-480.0,0.00021917,2]
[385758396,1758021046276,-480.0,0.00021917,2]
[385758397,1758021046285,-482.59317365,0.00021917,2]
[385758399,1758021046295,-151.0,0.00021917,2]
[385758400,1758021046304,-480.0,0.00021917,2]
[385758401,1758021046313,-520.45002683,0.00021917,2]
[385758402,1758021046323,-480.0,0.00021917,2]
[385758403,1758021046332,-480.0,0.00021917,2]
[385758404,1758021046343,-151.395287,0.00021917,2]
[385758405,1758021046352,-484.94747576,0.00021917,2]
[385758406,1758021046361,-480.0,0.00021917,2]
[385758407,1758021046371,-1365.17,0.00021917,2]
[385758408,1758021046380,-483.45870595,0.00021917,2]
[385758409,1758021046389,-482.40900327,0.00021917,2]
[385758410,1758021046398,-480.0,0.00021917,2]
[385758411,1758021046408,-1104.6467846,0.00021967,2]
[385758412,1758021046417,-4256.8373142,0.00021967,2]
[385758413,1758021046427,-250.0,0.00021971,2]
[385758414,1758021046436,-500.0,0.00021973,2]
[385758415,1758021046446,-190.08384178,0.00021973,2]
[385758416,1758021046456,-500.0,0.00021973,2]
[385758417,1758021046466,-500.0,0.00021973,2]
[385758418,1758021046475,-500.0,0.00021973,2]
[385758419,1758021046485,-500.0,0.00021973,2]
[385758420,1758021046494,-500.0,0.00021973,2]
[385758421,1758021046503,-420.72753763,0.00021973,2]
[385758422,1758021046514,-500.68439844,0.00021973,2]
[385758423,1758021046523,-500.0,0.00021973,2]
[385758424,1758021046532,-500.0,0.00021973,2]
[385758425,1758021046542,-500.0,0.00021973,2]
[385758426,1758021046551,-500.0,0.00021973,2]
[385758427,1758021046560,-500.0,0.00021973,2]
[385758428,1758021046569,-501.08031323,0.00021973,2]
[385758429,1758021046578,-500.0,0.00021973,2]
[385758430,1758021046587,-500.0,0.00021973,2]
[385758431,1758021046598,-500.0,0.00021973,2]
[385758432,1758021046608,-207.86702387,0.00021973,2]
[385758433,1758021046621,-500.0,0.00021973,2]
[385758434,1758021046630,-500.78713878,0.00021973,2]
[385758435,1758021046639,-500.0,0.00021973,2]
[385758436,1758021046648,-500.0,0.00021973,2]
[385758437,1758021046658,-500.0,0.00021973,2]
[385758438,1758021046668,-500.0,0.00021973,2]
[385758439,1758021046677,-500.0,0.00021973,2]
[385758440,1758021046690,-500.0,0.00021973,2]
[385758441,1758021046699,-500.0,0.00021973,2]
[385758442,1758021046708,-500.0,0.00021973,2]
[385758443,1758021046718,-500.0,0.00021973,2]
[385758444,1758021046727,-500.0,0.00021973,2]
[385758445,1758021046736,-500.0,0.00021973,2]
[385758446,1758021046745,-500.0,0.00021973,2]
[385758447,1758021046754,-500.0,0.00021973,2]
[385758448,1758021046764,-501.66047372,0.00021973,2]
[385758449,1758021046774,-500.0,0.00021973,2]
[385758450,1758021046783,-500.0,0.00021973,2]
[385758451,1758021046793,-500.0,0.00021973,2]
[385758452,1758021046802,-500.0,0.00021973,2]
[385758453,1758021046811,-500.0,0.00021973,2]
[385758454,1758021046821,-508.01512079,0.00021973,2]
[385758455,1758021046831,-501.17687178,0.00021973,2]
[385758456,1758021046841,-501.28226836,0.00021973,2]
[385758457,1758021046851,-215.58766504,0.00021987,2]
[385758458,1758021046861,-157.0,0.00022039,2]
[385758459,1758021046870,-157.0,0.00022039,2]
[385758460,1758021046880,-205.82472705,0.00022039,2]
[385758461,1758021046890,-157.0,0.00022039,2]
[385758462,1758021046899,-151.0,0.00022039,2]
[385758463,1758021046909,-158.77468404,0.00022039,2]
[385758464,1758021046918,-157.0,0.00022039,2]
[385758465,1758021046928,-151.0,0.00022039,2]
[385758466,1758021046937,-151.0,0.00022039,2]
[385758467,1758021046946,-151.0,0.00022039,2]
[385758468,1758021046956,-151.0,0.00022039,2]
[385758469,1758021046965,-157.0,0.00022039,2]
[385758470,1758021046974,-151.0,0.00022039,2]
[385758471,1758021046984,-151.0,0.00022039,2]
[385758472,1758021046993,-792.0,0.00022039,2]
[385758473,1758021047003,-157.24661627,0.00022039,2]
[385758474,1758021047012,-151.0,0.00022039,2]
[385758475,1758021047021,-151.0,0.00022039,2]
[385758476,1758021047030,-157.30750495,0.00022039,2]
[385758477,1758021047039,-151.0,0.00022039,2]
[385758478,1758021047050,-157.17285397,0.00022039,2]
[385758479,1758021047061,-157.1731224,0.00022039,2]
[385758480,1758021047071,-157.0,0.00022039,2]
[385758481,1758021047079,-157.0,0.00022039,2]
[385758482,1758021047090,-151.0,0.00022039,2]
[385758483,1758021047100,-157.0,0.00022039,2]
[385758484,1758021047109,-450.0,0.00022047,2]
[385758485,1758021047119,-215.58766504,0.00022091,2]
[385758486,1758021047198,-774.808,0.00022139,2]
[385758487,1758021047209,-2158.097,0.00022139,2]
[385758488,1758021047218,-151.0,0.00022159,7]
[385758489,1758021047227,-500.0,0.00022173,2]
[385758490,1758021047237,-208.55842561,0.00022173,2]
[385758491,1758021047246,-201.33760362,0.00022173,2]
[385758492,1758021047256,-340.27811429,0.00022173,2]
[385758493,1758021047265,-500.0,0.00022173,2]
[385758494,1758021047275,-500.0,0.00022173,2]
[385758495,1758021047284,-501.03164112,0.00022173,2]
[385758496,1758021047294,-166.0,0.00022173,3]
[385758497,1758021047303,-166.0,0.00022173,3]
[385758498,1758021047312,-328.0,0.00022173,3]
[385758499,1758021047322,-328.0,0.00022173,3]
[385758500,1758021047331,-328.0,0.00022173,3]
[385758501,1758021047341,-328.0,0.00022173,3]
[385758502,1758021047350,-328.0,0.00022173,3]
[385758503,1758021047360,-328.0,0.00022173,3]
[385758504,1758021047369,-379.96448575,0.00022173,3]
[385758505,1758021047379,-328.0,0.00022173,3]
[385758506,1758021047387,-328.0,0.00022173,3]
[385758507,1758021047397,-328.0,0.00022173,3]
[385758508,1758021047406,-328.0,0.00022173,3]
[385758509,1758021047415,-328.0,0.00022173,3]
[385758510,1758021047424,-328.0,0.00022173,3]
[385758511,1758021047434,-328.0,0.00022173,3]
[385758512,1758021047444,-328.0,0.00022173,3]
[385758513,1758021047453,-328.0,0.00022173,3]
[385758514,1758021047462,-328.0,0.00022173,3]
[385758515,1758021047473,-328.0,0.00022173,3]
[385758516,1758021047482,-328.0,0.00022173,3]
[385758517,1758021047491,-328.0,0.00022173,3]
[385758518,1758021047501,-328.0,0.00022173,3]
[385758519,1758021047510,-328.0,0.00022173,3]
[385758520,1758021047519,-328.0,0.00022173,3]
[385758521,1758021047529,-328.0,0.00022173,3]
[385758522,1758021047538,-328.0,0.00022173,3]
[385758523,1758021047547,-328.0,0.00022173,3]
[385758524,1758021047556,-328.0,0.00022173,3]
[385758525,1758021047565,-328.0,0.00022173,3]
[385758526,1758021047574,-328.0,0.00022173,3]
[385758527,1758021047583,-328.0,0.00022173,3]
[385758528,1758021047593,-328.0,0.00022173,3]
[385758529,1758021047602,-328.0,0.00022173,3]
[385758530,1758021047614,-338.91317901,0.00022173,3]
[385758531,1758021047624,-328.0,0.00022173,3]
[385758532,1758021047633,-328.0,0.00022173,3]
[385758533,1758021047642,-328.0,0.00022173,3]
[385758534,1758021047653,-328.0,0.00022173,3]
[385758535,1758021047662,-328.0,0.00022173,3]
[385758536,1758021047671,-328.0,0.00022173,3]
[385758537,1758021047681,-328.0,0.00022173,3]
[385758538,1758021047692,-328.0,0.00022173,3]